[Event "*** Titled Tuesday Blitz"]
[Site "Chess.com"]
[Date "2020.12.29"]
[Round "8"]
[White "WinOrTilt"]
[Black "VladimirBugayev"]
[Result "1-0"]
[WhiteElo "2156"]
[BlackElo "2265"]
[TimeControl "180+1"]
[EndTime "11:29:19 PST"]
[Termination "WinOrTilt won on time"]

1. d4 {[%clk 0:03:00]} 1... Nf6 {[%clk 0:02:59]} 2. Nf3 {[%clk 0:02:59.7]} 2...
g6 {[%clk 0:02:58]} 3. e3 {[%clk 0:03:00]} 3... c5 {[%clk 0:02:50.6]} 4. Nbd2
{[%clk 0:03:00.9]} 4... cxd4 {[%clk 0:02:46]} 5. exd4 {[%clk 0:03:01.8]} 5...
Bg7 {[%clk 0:02:46.1]} 6. Be2 {[%clk 0:03:02.7]} 6... Nc6 {[%clk 0:02:45.7]} 7.
O-O {[%clk 0:03:03.6]} 7... O-O {[%clk 0:02:45.8]} 8. c3 {[%clk 0:03:04.5]} 8...
d6 {[%clk 0:02:37.8]} 9. b3 {[%clk 0:03:04.3]} 9... b6 {[%clk 0:02:36.6]} 10.
Bb2 {[%clk 0:03:05.2]} 10... Bb7 {[%clk 0:02:36.6]} 11. Rc1 {[%clk 0:03:02.4]}
11... Rc8 {[%clk 0:02:33.7]} 12. c4 {[%clk 0:03:02.3]} 12... d5 {[%clk
0:02:33.5]} 13. a3 {[%clk 0:03:00]} 13... dxc4 {[%clk 0:02:25.6]} 14. bxc4
{[%clk 0:03:00.9]} 14... e6 {[%clk 0:02:24.7]} 15. Qa4 {[%clk 0:02:56.2]} 15...
Na5 {[%clk 0:02:21.7]} 16. Bc3 {[%clk 0:02:52.1]} 16... Bc6 {[%clk 0:02:21.3]}
17. Qc2 {[%clk 0:02:48.7]} 17... Nb7 {[%clk 0:02:21.6]} 18. a4 {[%clk
0:02:45.6]} 18... Nd6 {[%clk 0:02:13.8]} 19. a5 {[%clk 0:02:41.9]} 19... b5
{[%clk 0:02:09.1]} 20. c5 {[%clk 0:02:41.8]} 20... Nde4 {[%clk 0:02:07.4]} 21.
Nxe4 {[%clk 0:02:39.8]} 21... Bxe4 {[%clk 0:02:05.8]} 22. Qb2 {[%clk 0:02:32.6]}
22... a6 {[%clk 0:02:05.6]} 23. Ne5 {[%clk 0:02:22]} 23... Nd5 {[%clk
0:01:52.9]} 24. f3 {[%clk 0:01:55.8]} 24... Nxc3 {[%clk 0:01:51.1]} 25. Qxc3
{[%clk 0:01:56.7]} 25... Bd5 {[%clk 0:01:51.4]} 26. Rfd1 {[%clk 0:01:43.5]}
26... Re8 {[%clk 0:01:28.9]} 27. Ng4 {[%clk 0:01:37]} 27... h5 {[%clk 0:01:18]}
28. Ne3 {[%clk 0:01:36.1]} 28... Bc6 {[%clk 0:01:13.9]} 29. Nc2 {[%clk
0:01:30.9]} 29... Qh4 {[%clk 0:01:11]} 30. Nb4 {[%clk 0:01:25.4]} 30... Red8
{[%clk 0:01:00.6]} 31. Nc2 {[%clk 0:01:20.2]} 31... Rd7 {[%clk 0:00:52.5]} 32.
g3 {[%clk 0:01:19.8]} 32... Qf6 {[%clk 0:00:48.7]} 33. Rd3 {[%clk 0:01:14.7]}
33... Rcd8 {[%clk 0:00:47.9]} 34. Rcd1 {[%clk 0:01:15]} 34... h4 {[%clk
0:00:47.8]} 35. Kg2 {[%clk 0:01:09.5]} 35... g5 {[%clk 0:00:42.5]} 36. Kf2
{[%clk 0:01:04.7]} 36... g4 {[%clk 0:00:40.8]} 37. f4 {[%clk 0:01:01.1]} 37...
hxg3+ {[%clk 0:00:39.9]} 38. hxg3 {[%clk 0:01:02]} 38... Qh6 {[%clk 0:00:39.3]}
39. Ke1 {[%clk 0:00:48.1]} 39... Be4 {[%clk 0:00:38.9]} 40. Re3 {[%clk
0:00:41.2]} 40... Bxd4 {[%clk 0:00:38]} 41. Rxd4 {[%clk 0:00:37.1]} 41... Qh1+
{[%clk 0:00:32.2]} 42. Kd2 {[%clk 0:00:36.7]} 42... Bxc2 {[%clk 0:00:31.7]} 43.
Rxd7 {[%clk 0:00:34.5]} 43... Rxd7+ {[%clk 0:00:31.4]} 44. Kxc2 {[%clk
0:00:34.9]} 44... Qd5 {[%clk 0:00:25.6]} 45. Rd3 {[%clk 0:00:32]} 45... Qa2+
{[%clk 0:00:24.1]} 46. Kd1 {[%clk 0:00:30.3]} 46... Qb1+ {[%clk 0:00:20.7]} 47.
Kd2 {[%clk 0:00:29.8]} 47... Qa2+ {[%clk 0:00:20.4]} 48. Ke1 {[%clk 0:00:27.1]}
48... Qb1+ {[%clk 0:00:20.3]} 49. Kf2 {[%clk 0:00:26.3]} 49... Rxd3 {[%clk
0:00:19.4]} 50. Qxd3 {[%clk 0:00:26.2]} 50... Qb4 {[%clk 0:00:17.9]} 51. Qd8+
{[%clk 0:00:25.4]} 51... Kh7 {[%clk 0:00:16.9]} 52. Bd3+ {[%clk 0:00:24.4]}
52... Kg7 {[%clk 0:00:16.2]} 53. Qg5+ {[%clk 0:00:23.4]} 53... Kf8 {[%clk
0:00:15.8]} 54. Qe5 {[%clk 0:00:22]} 54... Qd2+ {[%clk 0:00:14.5]} 55. Be2
{[%clk 0:00:22.5]} 55... Qxa5 {[%clk 0:00:13.8]} 56. Qd6+ {[%clk 0:00:20.3]}
56... Kg7 {[%clk 0:00:12.9]} 57. Qd4+ {[%clk 0:00:20]} 57... Kf8 {[%clk
0:00:11.4]} 58. c6 {[%clk 0:00:20.3]} 58... Qc7 {[%clk 0:00:10.9]} 59. Qc5+
{[%clk 0:00:19.7]} 59... Kg7 {[%clk 0:00:10.2]} 60. Bxg4 {[%clk 0:00:19.4]}
60... f5 {[%clk 0:00:07]} 61. Bf3 {[%clk 0:00:19.2]} 61... Kg6 {[%clk
0:00:06.8]} 62. Qe5 {[%clk 0:00:17.7]} 62... Qb6+ {[%clk 0:00:06.5]} 63. Qe3
{[%clk 0:00:17.3]} 63... Qc7 {[%clk 0:00:06.1]} 64. Qc3 {[%clk 0:00:16.8]} 64...
Qb6+ {[%clk 0:00:03.9]} 65. Kg2 {[%clk 0:00:15.4]} 65... Qc7 {[%clk 0:00:02.7]}
66. Qd4 {[%clk 0:00:15.2]} 66... Qa5 {[%clk 0:00:01.4]} 67. Qd3 {[%clk
0:00:08.7]} 1-0

[Event "*** Titled Tuesday Blitz"]
[Site "Chess.com"]
[Date "2020.12.29"]
[Round "8"]
[White "OK97"]
[Black "DryCounty"]
[Result "1/2-1/2"]
[WhiteElo "2791"]
[BlackElo "2634"]
[TimeControl "180+1"]
[EndTime "11:29:27 PST"]
[Termination "Game drawn - insufficient material"]

1. d4 {[%clk 0:03:00.9]} 1... Nf6 {[%clk 0:02:59.5]} 2. c4 {[%clk 0:03:01.1]}
2... g6 {[%clk 0:02:59.7]} 3. Nc3 {[%clk 0:03:01.3]} 3... Bg7 {[%clk 0:03:00.2]}
4. Bg5 {[%clk 0:03:01.1]} 4... O-O {[%clk 0:03:00.4]} 5. e3 {[%clk 0:03:00.2]}
5... d6 {[%clk 0:03:00.1]} 6. Be2 {[%clk 0:03:00.5]} 6... Nc6 {[%clk 0:02:57.7]}
7. Nf3 {[%clk 0:02:57]} 7... Bf5 {[%clk 0:02:56.7]} 8. d5 {[%clk 0:02:48.7]}
8... Nb4 {[%clk 0:02:51.3]} 9. Nd4 {[%clk 0:02:48.1]} 9... Bd7 {[%clk
0:02:51.7]} 10. a3 {[%clk 0:02:46]} 10... Na6 {[%clk 0:02:50.8]} 11. O-O {[%clk
0:02:41.2]} 11... Nc5 {[%clk 0:02:47.1]} 12. Qc2 {[%clk 0:02:36.7]} 12... a5
{[%clk 0:02:38.3]} 13. b4 {[%clk 0:02:34.3]} 13... Na6 {[%clk 0:02:37.2]} 14.
Rab1 {[%clk 0:02:30.3]} 14... c6 {[%clk 0:02:29.7]} 15. dxc6 {[%clk 0:02:22.8]}
15... bxc6 {[%clk 0:02:29]} 16. b5 {[%clk 0:02:06.6]} 16... cxb5 {[%clk
0:02:24.9]} 17. cxb5 {[%clk 0:02:07.5]} 17... Nc5 {[%clk 0:02:24.3]} 18. Bf3
{[%clk 0:02:02.4]} 18... Rc8 {[%clk 0:02:23.1]} 19. Nc6 {[%clk 0:02:02.7]} 19...
Bxc6 {[%clk 0:02:17.2]} 20. Bxc6 {[%clk 0:01:57.1]} 20... e6 {[%clk 0:02:12.8]}
21. Rfd1 {[%clk 0:01:38.5]} 21... Qc7 {[%clk 0:02:06.2]} 22. Bf4 {[%clk
0:01:18.3]} 22... Rfd8 {[%clk 0:02:01.9]} 23. Na4 {[%clk 0:01:15]} 23... Nxa4
{[%clk 0:01:45.1]} 24. Qxa4 {[%clk 0:01:15.9]} 24... Nh5 {[%clk 0:01:35.7]} 25.
Bg5 {[%clk 0:01:06.8]} 25... Bf6 {[%clk 0:01:31.6]} 26. Bxf6 {[%clk 0:00:54.9]}
26... Nxf6 {[%clk 0:01:32.5]} 27. Qd4 {[%clk 0:00:37.4]} 27... e5 {[%clk
0:01:27.3]} 28. Qh4 {[%clk 0:00:37.2]} 28... Kg7 {[%clk 0:01:25.3]} 29. a4
{[%clk 0:00:23.3]} 29... Qb6 {[%clk 0:01:22.2]} 30. Rbc1 {[%clk 0:00:23.4]}
30... d5 {[%clk 0:01:17.6]} 31. Qg3 {[%clk 0:00:23.3]} 31... Qb8 {[%clk
0:01:11.6]} 32. Qf3 {[%clk 0:00:22.5]} 32... e4 {[%clk 0:01:08.3]} 33. Qg3
{[%clk 0:00:20.1]} 33... Qxg3 {[%clk 0:01:02.9]} 34. hxg3 {[%clk 0:00:21]} 34...
Rd6 {[%clk 0:00:58.8]} 35. Bb7 {[%clk 0:00:16.1]} 35... Rxc1 {[%clk 0:00:52.5]}
36. Rxc1 {[%clk 0:00:17]} 36... d4 {[%clk 0:00:43.5]} 37. exd4 {[%clk
0:00:16.6]} 37... Rxd4 {[%clk 0:00:43.6]} 38. Bc6 {[%clk 0:00:11.3]} 38... Rb4
{[%clk 0:00:39.9]} 39. Ra1 {[%clk 0:00:08.2]} 39... Ng4 {[%clk 0:00:39]} 40. f3
{[%clk 0:00:07.2]} 40... exf3 {[%clk 0:00:27]} 41. gxf3 {[%clk 0:00:08.1]} 41...
Ne5 {[%clk 0:00:25.7]} 42. Bb7 {[%clk 0:00:07.2]} 42... Rb3 {[%clk 0:00:21.8]}
43. Kg2 {[%clk 0:00:06.8]} 43... Rb2+ {[%clk 0:00:20.6]} 44. Kf1 {[%clk
0:00:07.4]} 44... h5 {[%clk 0:00:19.6]} 45. Re1 {[%clk 0:00:06.8]} 45... Kf6
{[%clk 0:00:18.5]} 46. Rd1 {[%clk 0:00:05.3]} 46... Ke7 {[%clk 0:00:16.5]} 47.
Rd5 {[%clk 0:00:05.6]} 47... Nc4 {[%clk 0:00:15.9]} 48. Rc5 {[%clk 0:00:04.9]}
48... Ne3+ {[%clk 0:00:15.3]} 49. Ke1 {[%clk 0:00:04.2]} 49... Nf5 {[%clk
0:00:13.5]} 50. g4 {[%clk 0:00:04.2]} 50... hxg4 {[%clk 0:00:12.3]} 51. fxg4
{[%clk 0:00:05.1]} 51... Nd6 {[%clk 0:00:11.4]} 52. Rc7+ {[%clk 0:00:04.6]}
52... Ke6 {[%clk 0:00:11.4]} 53. Bc6 {[%clk 0:00:03.8]} 53... f5 {[%clk
0:00:10.2]} 54. gxf5+ {[%clk 0:00:03.8]} 54... gxf5 {[%clk 0:00:10.7]} 55. Ra7
{[%clk 0:00:04.6]} 55... Nc4 {[%clk 0:00:09.9]} 56. Bb7 {[%clk 0:00:04.4]} 56...
f4 {[%clk 0:00:08.6]} 57. Bc8+ {[%clk 0:00:04.8]} 57... Ke5 {[%clk 0:00:08.9]}
58. Bg4 {[%clk 0:00:05]} 58... Rb4 {[%clk 0:00:07.1]} 59. Be2 {[%clk 0:00:04]}
59... Nb2 {[%clk 0:00:05.7]} 60. Rxa5 {[%clk 0:00:03]} 60... Nxa4 {[%clk
0:00:05.9]} 61. b6+ {[%clk 0:00:02.9]} 61... Kd6 {[%clk 0:00:06.3]} 62. Rb5
{[%clk 0:00:03.1]} 62... Rxb5 {[%clk 0:00:05.8]} 63. Bxb5 {[%clk 0:00:04]} 63...
Nxb6 {[%clk 0:00:06.3]} 64. Be2 {[%clk 0:00:04]} 64... Ke5 {[%clk 0:00:06.7]}
65. Kf2 {[%clk 0:00:04.9]} 65... Nd5 {[%clk 0:00:06.8]} 66. Bf3 {[%clk
0:00:05.8]} 66... Nf6 {[%clk 0:00:06.9]} 67. Be2 {[%clk 0:00:06.1]} 67... Ne4+
{[%clk 0:00:06.8]} 68. Kf3 {[%clk 0:00:05.9]} 68... Nd2+ {[%clk 0:00:07.4]} 69.
Kf2 {[%clk 0:00:06.3]} 69... Kd4 {[%clk 0:00:07.9]} 70. Bg4 {[%clk 0:00:06]}
70... Ne4+ {[%clk 0:00:07.7]} 71. Kf3 {[%clk 0:00:05.8]} 71... Ke5 {[%clk
0:00:08.2]} 72. Bc8 {[%clk 0:00:05.1]} 72... Ng5+ {[%clk 0:00:08.7]} 73. Kf2
{[%clk 0:00:05.4]} 73... f3 {[%clk 0:00:09]} 74. Bb7 {[%clk 0:00:05.3]} 74...
Kf4 {[%clk 0:00:09.5]} 75. Bxf3 {[%clk 0:00:05.5]} 1/2-1/2

[Event "*** Titled Tuesday Blitz"]
[Site "Chess.com"]
[Date "2020.12.29"]
[Round "8"]
[White "Leo_C"]
[Black "geordie_derraugh"]
[Result "1-0"]
[WhiteElo "2382"]
[BlackElo "2509"]
[TimeControl "180+1"]
[EndTime "11:29:31 PST"]
[Termination "Leo_C won by resignation"]

1. d4 {[%clk 0:03:00.9]} 1... Nf6 {[%clk 0:02:59.5]} 2. c4 {[%clk 0:03:00]} 2...
e6 {[%clk 0:02:59.6]} 3. Nc3 {[%clk 0:02:59.5]} 3... Bb4 {[%clk 0:03:00.1]} 4.
e3 {[%clk 0:02:59]} 4... O-O {[%clk 0:02:59.7]} 5. Bd3 {[%clk 0:02:58.7]} 5...
b6 {[%clk 0:02:58]} 6. a3 {[%clk 0:02:55.4]} 6... Be7 {[%clk 0:02:49.2]} 7. e4
{[%clk 0:02:53.9]} 7... d6 {[%clk 0:02:37.8]} 8. Nf3 {[%clk 0:02:51.6]} 8... Bb7
{[%clk 0:02:30.3]} 9. O-O {[%clk 0:02:46.2]} 9... Nbd7 {[%clk 0:02:29.2]} 10. b4
{[%clk 0:02:13.7]} 10... e5 {[%clk 0:02:27.3]} 11. d5 {[%clk 0:02:11.6]} 11...
a5 {[%clk 0:02:22.4]} 12. Bd2 {[%clk 0:02:02.3]} 12... h6 {[%clk 0:02:08.3]} 13.
Qe2 {[%clk 0:01:50.4]} 13... Nh7 {[%clk 0:02:05]} 14. g3 {[%clk 0:01:45.6]}
14... Ng5 {[%clk 0:02:01.6]} 15. Ne1 {[%clk 0:01:43.6]} 15... Bc8 {[%clk
0:02:00.4]} 16. f4 {[%clk 0:01:36.9]} 16... axb4 {[%clk 0:01:53.1]} 17. Na2
{[%clk 0:01:22.2]} 17... exf4 {[%clk 0:01:27.4]} 18. gxf4 {[%clk 0:01:17.3]}
18... Bf6 {[%clk 0:01:27.9]} 19. Rb1 {[%clk 0:00:58.7]} 19... Rxa3 {[%clk
0:01:22.6]} 20. Bxb4 {[%clk 0:00:52.7]} 20... Bd4+ {[%clk 0:01:03.2]} 21. Kh1
{[%clk 0:00:52.2]} 21... Rxa2 {[%clk 0:00:52.9]} 22. Qxa2 {[%clk 0:00:51.4]}
22... Nh7 {[%clk 0:00:50.9]} 23. Nf3 {[%clk 0:00:47.3]} 23... Be3 {[%clk
0:00:49.4]} 24. Bd2 {[%clk 0:00:41.5]} 24... Bxd2 {[%clk 0:00:49]} 25. Qxd2
{[%clk 0:00:40.7]} 25... Nc5 {[%clk 0:00:49.6]} 26. Bc2 {[%clk 0:00:40.7]} 26...
Re8 {[%clk 0:00:49]} 27. e5 {[%clk 0:00:40.3]} 27... Bg4 {[%clk 0:00:44.4]} 28.
Qg2 {[%clk 0:00:32.4]} 28... Bxf3 {[%clk 0:00:41.4]} 29. Qxf3 {[%clk 0:00:32.4]}
29... Qh4 {[%clk 0:00:36.8]} 30. Rg1 {[%clk 0:00:19.7]} 30... dxe5 {[%clk
0:00:34.7]} 31. Bxh7+ {[%clk 0:00:17.7]} 31... Kxh7 {[%clk 0:00:34.3]} 32. fxe5
{[%clk 0:00:17.8]} 32... Rxe5 {[%clk 0:00:30]} 33. Rbf1 {[%clk 0:00:15.7]} 33...
f6 {[%clk 0:00:16.9]} 34. Qg2 {[%clk 0:00:14.9]} 34... Rg5 {[%clk 0:00:15.8]}
35. Qf3 {[%clk 0:00:14.8]} 35... Qxc4 {[%clk 0:00:15.6]} 36. Rxg5 {[%clk
0:00:13.3]} 36... hxg5 {[%clk 0:00:13.6]} 37. Qh3+ {[%clk 0:00:13.1]} 37... Kg8
{[%clk 0:00:12.1]} 38. Qc8+ {[%clk 0:00:13]} 38... Kh7 {[%clk 0:00:12.3]} 39.
Qh3+ {[%clk 0:00:12.7]} 39... Kg6 {[%clk 0:00:10.2]} 40. Qf3 {[%clk 0:00:12.3]}
40... Qe4 {[%clk 0:00:07.7]} 41. Qxe4+ {[%clk 0:00:12.3]} 41... Nxe4 {[%clk
0:00:08.6]} 42. Rc1 {[%clk 0:00:12]} 42... Kf5 {[%clk 0:00:04.8]} 43. Rxc7
{[%clk 0:00:11.9]} 43... Ke5 {[%clk 0:00:05.1]} 44. Rc6 {[%clk 0:00:11.2]} 44...
Kxd5 {[%clk 0:00:04.2]} 45. Rxb6 {[%clk 0:00:11.6]} 45... Ke5 {[%clk 0:00:04.5]}
46. Rb7 {[%clk 0:00:11.9]} 46... g6 {[%clk 0:00:04.6]} 47. Kg2 {[%clk
0:00:12.4]} 47... Kf4 {[%clk 0:00:03.1]} 48. Rb5 {[%clk 0:00:12.7]} 48... f5
{[%clk 0:00:03.1]} 49. Rb6 {[%clk 0:00:12.8]} 49... g4 {[%clk 0:00:03.1]} 50.
Rxg6 {[%clk 0:00:12.7]} 50... Ng5 {[%clk 0:00:03.1]} 51. Ra6 {[%clk 0:00:12.7]}
51... Nf3 {[%clk 0:00:03.4]} 52. Ra4+ {[%clk 0:00:12.8]} 52... Kg5 {[%clk
0:00:03.8]} 53. Kg3 {[%clk 0:00:12.6]} 53... Ne5 {[%clk 0:00:03.8]} 54. Ra5
{[%clk 0:00:11.9]} 54... Ng6 {[%clk 0:00:04.4]} 55. Kg2 {[%clk 0:00:11]} 55...
Kh4 {[%clk 0:00:04.5]} 56. Rxf5 {[%clk 0:00:09.9]} 56... g3 {[%clk 0:00:04.6]}
57. hxg3+ {[%clk 0:00:09.8]} 57... Kg4 {[%clk 0:00:05.5]} 58. Ra5 {[%clk
0:00:09.9]} 58... Ne7 {[%clk 0:00:05.4]} 59. Ra4+ {[%clk 0:00:10.1]} 59... Kg5
{[%clk 0:00:05.7]} 60. Kf3 {[%clk 0:00:11]} 60... Nf5 {[%clk 0:00:05.9]} 61. Ra5
{[%clk 0:00:11.4]} 61... Kf6 {[%clk 0:00:05.4]} 62. Kf4 {[%clk 0:00:11.4]} 62...
Ne7 {[%clk 0:00:05.1]} 63. Ra6+ {[%clk 0:00:11.5]} 63... Kf7 {[%clk 0:00:05.5]}
64. g4 {[%clk 0:00:11.3]} 64... Kg7 {[%clk 0:00:05.1]} 65. Ra7 {[%clk
0:00:10.3]} 65... Kf6 {[%clk 0:00:05]} 66. Rxe7 {[%clk 0:00:09.9]} 66... Kxe7
{[%clk 0:00:05.9]} 67. Kg5 {[%clk 0:00:10]} 67... Kf7 {[%clk 0:00:06.4]} 68. Kh6
{[%clk 0:00:10.3]} 68... Kg8 {[%clk 0:00:07]} 69. Kg6 {[%clk 0:00:09.5]} 69...
Kh8 {[%clk 0:00:05.8]} 70. Kh6 {[%clk 0:00:09.4]} 70... Kg8 {[%clk 0:00:05.9]}
71. Kg6 {[%clk 0:00:09.6]} 71... Kh8 {[%clk 0:00:06.1]} 72. Kf6 {[%clk
0:00:09.8]} 72... Kh7 {[%clk 0:00:04.1]} 73. g5 {[%clk 0:00:08.6]} 73... Kh8
{[%clk 0:00:03.4]} 74. Kf7 {[%clk 0:00:07.6]} 74... Kh7 {[%clk 0:00:03.7]} 75.
g6+ {[%clk 0:00:08.1]} 1-0

[Event "*** Titled Tuesday Blitz"]
[Site "Chess.com"]
[Date "2020.12.29"]
[Round "8"]
[White "Vaathi_Coming"]
[Black "QuintilianoR"]
[Result "1-0"]
[WhiteElo "2841"]
[BlackElo "2662"]
[TimeControl "180+1"]
[EndTime "11:29:38 PST"]
[Termination "Vaathi_Coming won by resignation"]

1. g3 {[%clk 0:03:00.9]} 1... d5 {[%clk 0:02:59.3]} 2. Bg2 {[%clk 0:03:00.9]}
2... Nf6 {[%clk 0:02:59.9]} 3. d4 {[%clk 0:03:00.5]} 3... e6 {[%clk 0:02:59.5]}
4. Nf3 {[%clk 0:03:00.9]} 4... Be7 {[%clk 0:03:00]} 5. O-O {[%clk 0:03:01.2]}
5... O-O {[%clk 0:03:00.5]} 6. c4 {[%clk 0:03:01.6]} 6... dxc4 {[%clk
0:03:01.4]} 7. Na3 {[%clk 0:03:00.5]} 7... Bxa3 {[%clk 0:02:54.6]} 8. bxa3
{[%clk 0:03:01.4]} 8... Nc6 {[%clk 0:02:53.4]} 9. a4 {[%clk 0:02:47.2]} 9... a6
{[%clk 0:02:43.9]} 10. Ba3 {[%clk 0:02:46]} 10... Re8 {[%clk 0:02:42]} 11. Rc1
{[%clk 0:02:46]} 11... b5 {[%clk 0:02:35.4]} 12. Ne5 {[%clk 0:02:45.6]} 12...
Nxe5 {[%clk 0:02:35]} 13. Bxa8 {[%clk 0:02:44.5]} 13... Ng6 {[%clk 0:02:30.5]}
14. Bc5 {[%clk 0:02:32.8]} 14... Nd5 {[%clk 0:02:11.8]} 15. axb5 {[%clk
0:02:29.3]} 15... axb5 {[%clk 0:02:10.7]} 16. Bc6 {[%clk 0:02:05.5]} 16... Bd7
{[%clk 0:02:09]} 17. Bxd7 {[%clk 0:02:05.2]} 17... Qxd7 {[%clk 0:02:09.9]} 18.
a4 {[%clk 0:02:05.8]} 18... c6 {[%clk 0:02:02.6]} 19. e4 {[%clk 0:02:05.9]}
19... Nf6 {[%clk 0:02:01.3]} 20. f3 {[%clk 0:02:02.7]} 20... e5 {[%clk
0:01:54.1]} 21. Rf2 {[%clk 0:01:55.6]} 21... exd4 {[%clk 0:01:47.4]} 22. Bxd4
{[%clk 0:01:53.4]} 22... Rd8 {[%clk 0:01:26]} 23. Rd2 {[%clk 0:01:53.1]} 23...
Ne5 {[%clk 0:01:25.6]} 24. axb5 {[%clk 0:01:03.2]} 24... cxb5 {[%clk 0:01:23.3]}
25. Rc3 {[%clk 0:00:44.6]} 25... h6 {[%clk 0:01:07.4]} 26. Qb1 {[%clk
0:00:32.3]} 26... Qc6 {[%clk 0:00:53.8]} 27. Kg2 {[%clk 0:00:23.2]} 27... Ned7
{[%clk 0:00:16.5]} 28. Bxf6 {[%clk 0:00:17.8]} 28... Qxf6 {[%clk 0:00:15.9]} 29.
Rc1 {[%clk 0:00:16]} 29... Nc5 {[%clk 0:00:14]} 30. Rxd8+ {[%clk 0:00:14.6]}
30... Qxd8 {[%clk 0:00:14.9]} 31. Rd1 {[%clk 0:00:15]} 31... Nd3 {[%clk
0:00:12.1]} 32. Qxb5 {[%clk 0:00:06]} 32... Nf4+ {[%clk 0:00:11.6]} 33. gxf4
{[%clk 0:00:06.3]} 33... Qxd1 {[%clk 0:00:12.5]} 34. Qxc4 {[%clk 0:00:04.4]}
34... Qd2+ {[%clk 0:00:12.9]} 35. Kg3 {[%clk 0:00:04.8]} 35... Qe1+ {[%clk
0:00:13.2]} 36. Kg2 {[%clk 0:00:03.3]} 36... Qd2+ {[%clk 0:00:13.3]} 37. Kg3
{[%clk 0:00:04]} 37... Qe1+ {[%clk 0:00:13.6]} 38. Kh3 {[%clk 0:00:04]} 38...
Qf2 {[%clk 0:00:12.7]} 39. Qd3 {[%clk 0:00:02.9]} 39... Qg1 {[%clk 0:00:07.6]}
40. Qe2 {[%clk 0:00:02.3]} 40... Qc1 {[%clk 0:00:06.8]} 41. Kg3 {[%clk 0:00:02]}
41... Qg1+ {[%clk 0:00:07]} 42. Qg2 {[%clk 0:00:02.4]} 42... Qe1+ {[%clk
0:00:07.1]} 43. Qf2 {[%clk 0:00:03.1]} 43... Qc1 {[%clk 0:00:06.4]} 44. Qe2
{[%clk 0:00:03.7]} 44... Qg1+ {[%clk 0:00:06.4]} 45. Qg2 {[%clk 0:00:04]} 45...
Qc1 {[%clk 0:00:07]} 46. Qf2 {[%clk 0:00:04.9]} 46... f6 {[%clk 0:00:05.2]} 47.
Qd4 {[%clk 0:00:04.7]} 47... Qe1+ {[%clk 0:00:04.5]} 48. Kg2 {[%clk 0:00:04.9]}
48... Qe2+ {[%clk 0:00:04.1]} 49. Qf2 {[%clk 0:00:05.2]} 49... Qd3 {[%clk
0:00:04.3]} 50. f5 {[%clk 0:00:05.5]} 50... Qd6 {[%clk 0:00:03]} 51. Qg3 {[%clk
0:00:05.8]} 51... Qd2+ {[%clk 0:00:03]} 52. Kh3 {[%clk 0:00:06.2]} 52... Qd1
{[%clk 0:00:03.5]} 53. Qg2 {[%clk 0:00:04.8]} 53... Kh7 {[%clk 0:00:03.7]} 54.
Qg6+ {[%clk 0:00:04.7]} 54... Kh8 {[%clk 0:00:03.6]} 55. Qg3 {[%clk 0:00:05.3]}
55... Kh7 {[%clk 0:00:03.3]} 56. Kh4 {[%clk 0:00:05.7]} 56... Qc1 {[%clk
0:00:02.9]} 57. Kh5 {[%clk 0:00:05.3]} 57... Qd1 {[%clk 0:00:02.6]} 58. Qg6+
{[%clk 0:00:05.1]} 58... Kh8 {[%clk 0:00:02.4]} 59. Qg4 {[%clk 0:00:05]} 59...
Qd7 {[%clk 0:00:03]} 60. Kh4 {[%clk 0:00:04.3]} 60... Qd1 {[%clk 0:00:03.2]} 61.
Qg2 {[%clk 0:00:03.1]} 61... Qe1+ {[%clk 0:00:03.3]} 62. Kg4 {[%clk 0:00:03.4]}
62... Qd1 {[%clk 0:00:04.2]} 63. Kg3 {[%clk 0:00:02.9]} 63... Qd8 {[%clk
0:00:04.6]} 64. Qf2 {[%clk 0:00:03.8]} 64... Qd6+ {[%clk 0:00:04.8]} 65. Kg2
{[%clk 0:00:04.2]} 65... Qd3 {[%clk 0:00:05.3]} 66. Qg3 {[%clk 0:00:04.2]} 66...
Qd2+ {[%clk 0:00:05.5]} 67. Qf2 {[%clk 0:00:04.8]} 67... Qd1 {[%clk 0:00:06]}
68. Qb2 {[%clk 0:00:04.7]} 68... Kh7 {[%clk 0:00:03.7]} 69. Kf2 {[%clk
0:00:04.6]} 69... Qh1 {[%clk 0:00:03.7]} 70. Ke3 {[%clk 0:00:04.7]} 70... Qg1+
{[%clk 0:00:03.3]} 71. Qf2 {[%clk 0:00:04.7]} 71... Qf1 {[%clk 0:00:03.9]} 72.
Qxf1 {[%clk 0:00:04.8]} 1-0